[Event "2. Itzehoer Schach Open"]
[Site "Itzehoe, Germany"]
[Date "2023.04.29"]
[Round "2.24"]
[White "Recklies, Volker"]
[Black "Thomsen, Flemming"]
[Result "1/2-1/2"]
[TimeControl "90 min / 40 Züge + 30 min + 30 Sek pro Zug"]
[WhiteElo "1701"]
[BlackElo "1517"]

1. Nf3 {[%clk 01:30:56]} {[%emt 00:00:03]} Nf6 {[%clk 01:30:52]} {[%emt
00:00:08]} 2. g3 {[%clk 01:31:20]} {[%emt 00:00:07]} g6 {[%clk 01:30:52]}
{[%emt 00:00:30]} 3. Bg2 {[%clk 01:31:43]} {[%emt 00:00:07]} Bg7 {[%clk
01:31:02]} {[%emt 00:00:19]} 4. d4 {[%clk 01:32:01]} {[%emt 00:00:12]} d5
{[%clk 01:31:10]} {[%emt 00:00:23]} 5. O-O {[%clk 01:31:29]} {[%emt 00:01:01]}
O-O {[%clk 01:30:47]} {[%emt 00:00:54]} 6. c3 {[%clk 01:30:06]} {[%emt
00:01:52]} c6 {[%clk 01:30:22]} {[%emt 00:00:55]} 7. Nbd2 {[%clk 01:29:52]}
{[%emt 00:00:44]} Nbd7 {[%clk 01:29:15]} {[%emt 00:01:38]} 8. Re1 {[%clk
01:27:52]} {[%emt 00:02:29]} e6 {[%clk 01:19:52]} {[%emt 00:09:54]} 9. Qc2
{[%clk 01:27:27]} {[%emt 00:00:55]} c5 {[%clk 01:17:02]} {[%emt 00:03:20]} 10.
e4 {[%clk 01:24:11]} {[%emt 00:03:45]} dxe4 {[%clk 01:12:27]} {[%emt 00:05:05]}
11. Nxe4 {[%clk 01:24:26]} {[%emt 00:00:15]} Nxe4 {[%clk 01:08:32]} {[%emt
00:04:25]} 12. Qxe4 {[%clk 01:24:13]} {[%emt 00:00:43]} Qb6 {[%clk 01:06:34]}
{[%emt 00:02:29]} 13. dxc5 {[%clk 01:11:33]} {[%emt 00:13:10]} Nxc5 {[%clk
01:05:15]} {[%emt 00:01:49]} 14. Qe2 {[%clk 01:11:48]} {[%emt 00:00:14]} Na4
{[%clk 00:59:56]} {[%emt 00:05:49]} 15. Ne5 {[%clk 01:06:01]} {[%emt 00:06:18]}
Rd8 {[%clk 00:44:16]} {[%emt 00:16:10]} 16. Qc2 {[%clk 01:04:26]} {[%emt
00:02:05]} Nc5 {[%clk 00:39:44]} {[%emt 00:05:02]} 17. Nc4 {[%clk 00:59:52]}
{[%emt 00:05:03]} Qb5 {[%clk 00:34:57]} {[%emt 00:05:18]} 18. Bf1 {[%clk
00:55:00]} {[%emt 00:05:20]} Qc6 {[%clk 00:30:20]} {[%emt 00:05:09]} 19. Bf4
{[%clk 00:53:09]} {[%emt 00:02:20]} e5 {[%clk 00:23:26]} {[%emt 00:07:24]} 20.
Bg2 {[%clk 00:44:03]} {[%emt 00:09:36]} e4 {[%clk 00:20:25]} {[%emt 00:03:31]}
21. Bxe4 {[%clk 00:42:44]} {[%emt 00:01:49]} Nxe4 {[%clk 00:18:47]} {[%emt
00:02:08]} 22. Qxe4 {[%clk 00:42:56]} {[%emt 00:00:17]} Qxe4 {[%clk 00:16:41]}
{[%emt 00:02:37]} 23. Rxe4 {[%clk 00:43:17]} {[%emt 00:00:09]} Be6 {[%clk
00:12:11]} {[%emt 00:05:00]} 24. Na5 {[%clk 00:28:35]} {[%emt 00:15:12]} Rd7
{[%clk 00:11:06]} {[%emt 00:01:35]} 25. Nb3 {[%clk 00:28:22]} {[%emt 00:00:44]}
Rad8 {[%clk 00:10:34]} {[%emt 00:01:02]} 26. Ree1 {[%clk 00:23:53]} {[%emt
00:04:58]} b6 {[%clk 00:09:41]} {[%emt 00:01:23]} 27. Be5 {[%clk 00:20:48]}
{[%emt 00:03:34]} Bxe5 {[%clk 00:08:06]} {[%emt 00:02:06]} 28. Rxe5 {[%clk
00:21:15]} {[%emt 00:00:03]} Rd1+ {[%clk 00:07:20]} {[%emt 00:01:16]} 29. Re1
{[%clk 00:21:16]} {[%emt 00:00:29]} Bxb3 {[%clk 00:07:02]} {[%emt 00:00:49]} 30.
axb3 {[%clk 00:21:30]} {[%emt 00:00:15]} Rxe1+ {[%clk 00:07:01]} {[%emt
00:00:31]} 31. Rxe1 {[%clk 00:21:52]} {[%emt 00:00:07]} Rd2 {[%clk 00:07:17]}
{[%emt 00:00:14]} 32. Rb1 {[%clk 00:21:28]} {[%emt 00:00:55]} Kf8 {[%clk
00:05:09]} {[%emt 00:02:38]} 33. Kf1 {[%clk 00:21:38]} {[%emt 00:00:20]} a5
{[%clk 00:04:58]} {[%emt 00:00:41]} 34. b4 {[%clk 00:19:16]} {[%emt 00:02:52]}
axb4 {[%clk 00:04:39]} {[%emt 00:00:50]} 35. Ke1 {[%clk 00:17:27]} {[%emt
00:02:18]} Rc2 {[%clk 00:03:44]} {[%emt 00:01:24]} 36. cxb4 {[%clk 00:16:42]}
{[%emt 00:01:16]} 1/2-1/2

[Event "2. Itzehoer Schach Open"]
[Site "Itzehoe, Germany"]
[Date "2023.04.29"]
[Round "2.27"]
[White "Eitel, Luc"]
[Black "Schulze, Tim"]
[Result "1/2-1/2"]
[TimeControl "90 min / 40 Züge + 30 min + 30 Sek pro Zug"]
[WhiteElo "1383"]
[BlackElo "1663"]

1. e4 {[%clk 01:30:56]} {[%emt 00:00:02]} c6 {[%clk 01:30:02]} {[%emt
00:00:59]} 2. d4 {[%clk 01:31:17]} {[%emt 00:00:09]} d5 {[%clk 01:30:30]}
{[%emt 00:00:02]} 3. Nd2 {[%clk 01:31:37]} {[%emt 00:00:10]} dxe4 {[%clk
01:30:56]} {[%emt 00:00:05]} 4. Nxe4 {[%clk 01:32:03]} {[%emt 00:00:03]} Bf5
{[%clk 01:31:21]} {[%emt 00:00:05]} 5. Ng3 {[%clk 01:32:19]} {[%emt 00:00:14]}
Bg6 {[%clk 01:31:50]} 6. h4 {[%clk 01:32:36]} {[%emt 00:00:13]} h6 {[%clk
01:32:18]} {[%emt 00:00:02]} 7. c3 {[%clk 01:32:44]} {[%emt 00:00:22]} e6
{[%clk 01:32:26]} {[%emt 00:00:22]} 8. Nf3 {[%clk 01:32:52]} {[%emt 00:00:22]}
Nd7 {[%clk 01:32:51]} {[%emt 00:00:05]} 9. h5 {[%clk 01:33:05]} {[%emt
00:00:17]} Bh7 {[%clk 01:33:19]} {[%emt 00:00:02]} 10. Bd3 {[%clk 01:32:14]}
{[%emt 00:01:20]} Bxd3 {[%clk 01:33:37]} {[%emt 00:00:12]} 11. Qxd3 {[%clk
01:32:37]} {[%emt 00:00:07]} Ngf6 {[%clk 01:34:01]} {[%emt 00:00:07]} 12. Bf4
{[%clk 01:31:51]} {[%emt 00:01:17]} Qa5 {[%clk 01:34:23]} {[%emt 00:00:07]} 13.
Ne5 {[%clk 01:23:12]} {[%emt 00:09:09]} Nxe5 {[%clk 01:28:00]} {[%emt
00:06:53]} 14. Bxe5 {[%clk 01:23:09]} {[%emt 00:00:33]} Be7 {[%clk 01:28:19]}
{[%emt 00:00:11]} 15. Bxf6 {[%clk 01:21:19]} {[%emt 00:02:21]} Bxf6 {[%clk
01:28:46]} {[%emt 00:00:02]} 16. Ne4 {[%clk 01:21:09]} {[%emt 00:00:40]} Be7
{[%clk 01:28:52]} {[%emt 00:00:24]} 17. Qg3 {[%clk 01:19:19]} {[%emt 00:02:20]}
Qd5 {[%clk 01:25:34]} {[%emt 00:03:48]} 18. f3 {[%clk 01:15:13]} {[%emt
00:04:36]} O-O {[%clk 01:24:25]} {[%emt 00:01:38]} 19. Qc7 {[%clk 01:11:37]}
{[%emt 00:04:06]} Bg5 {[%clk 01:20:55]} {[%emt 00:04:00]} 20. Nxg5 {[%clk
01:06:46]} {[%emt 00:05:22]} Qxg5 {[%clk 01:21:19]} {[%emt 00:00:06]} 21. O-O
{[%clk 01:06:55]} {[%emt 00:00:21]} Rab8 {[%clk 01:15:34]} {[%emt 00:06:16]} 22.
Qe5 {[%clk 01:06:30]} {[%emt 00:00:53]} Qxe5 {[%clk 01:09:43]} {[%emt
00:06:22]} 23. dxe5 {[%clk 01:06:54]} {[%emt 00:00:05]} Rfd8 {[%clk 01:10:09]}
{[%emt 00:00:05]} 24. Rad1 {[%clk 01:06:53]} {[%emt 00:00:30]} Rd5 {[%clk
01:10:26]} {[%emt 00:00:13]} 25. Rxd5 {[%clk 01:06:15]} {[%emt 00:01:09]} cxd5
{[%clk 01:10:54]} {[%emt 00:00:02]} 26. Rd1 {[%clk 01:06:32]} {[%emt 00:00:12]}
b5 {[%clk 01:09:02]} {[%emt 00:02:22]} 27. Rd4 {[%clk 01:06:46]} {[%emt
00:00:16]} a5 {[%clk 01:08:37]} {[%emt 00:00:56]} 28. a3 {[%clk 01:06:41]}
{[%emt 00:00:35]} Kf8 {[%clk 01:08:51]} {[%emt 00:00:16]} 29. Kf2 {[%clk
01:06:53]} {[%emt 00:00:18]} Ke7 {[%clk 01:04:31]} {[%emt 00:04:50]} 1/2-1/2

[Event "2. Itzehoer Schach Open"]
[Site "Itzehoe, Germany"]
[Date "2023.04.29"]
[Round "2.26"]
[White "Rick, Niklas Corvin"]
[Black "Oblender, Rudi"]
[Result "1/2-1/2"]
[TimeControl "90 min / 40 Züge + 30 min + 30 Sek pro Zug"]
[WhiteElo "1672"]
[BlackElo "1391"]

1. d4 {[%clk 01:29:41]} {[%emt 00:01:18]} d5 {[%clk 01:30:57]} {[%emt
00:00:04]} 2. c4 {[%clk 01:28:46]} {[%emt 00:01:24]} e6 {[%clk 01:30:54]}
{[%emt 00:00:33]} 3. cxd5 {[%clk 01:26:18]} {[%emt 00:02:58]} exd5 {[%clk
01:30:54]} {[%emt 00:00:31]} 4. Nc3 {[%clk 01:26:31]} {[%emt 00:00:16]} Nf6
{[%clk 01:31:15]} {[%emt 00:00:09]} 5. Bg5 {[%clk 01:26:27]} {[%emt 00:00:33]}
Nc6 {[%clk 01:31:35]} {[%emt 00:00:10]} 6. e3 {[%clk 01:23:15]} {[%emt
00:03:42]} Be6 {[%clk 01:31:53]} {[%emt 00:00:13]} 7. Bd3 {[%clk 01:22:11]}
{[%emt 00:01:34]} h6 {[%clk 01:28:45]} {[%emt 00:03:38]} 8. Bh4 {[%clk
01:21:43]} {[%emt 00:00:56]} g5 {[%clk 01:29:05]} {[%emt 00:00:11]} 9. Bg3
{[%clk 01:21:26]} {[%emt 00:00:46]} Bd6 {[%clk 01:29:06]} {[%emt 00:00:30]} 10.
Nf3 {[%clk 01:16:32]} {[%emt 00:05:24]} a6 {[%clk 01:21:03]} {[%emt 00:08:34]}
11. Qb3 {[%clk 01:12:25]} {[%emt 00:04:36]} b5 {[%clk 01:16:22]} {[%emt
00:05:11]} 12. Rc1 {[%clk 01:09:57]} {[%emt 00:02:58]} Na5 {[%clk 01:09:24]}
{[%emt 00:07:29]} 13. Qc2 {[%clk 01:07:18]} {[%emt 00:03:08]} Rc8 {[%clk
00:52:51]} {[%emt 00:17:04]} 14. a3 {[%clk 00:53:18]} {[%emt 00:14:29]} Nb7
{[%clk 00:40:45]} {[%emt 00:12:37]} 15. b4 {[%clk 00:47:32]} {[%emt 00:06:15]}
Bxg3 {[%clk 00:35:39]} {[%emt 00:05:37]} 16. hxg3 {[%clk 00:47:18]} {[%emt
00:00:44]} Nd6 {[%clk 00:27:36]} {[%emt 00:08:33]} 17. Nxg5 {[%clk 00:44:10]}
{[%emt 00:03:38]} Ng4 {[%clk 00:26:26]} {[%emt 00:01:38]} 18. Nxe6 {[%clk
00:42:22]} {[%emt 00:02:19]} fxe6 {[%clk 00:26:44]} {[%emt 00:00:13]} 19. Qe2
{[%clk 00:39:01]} {[%emt 00:03:50]} Qg5 {[%clk 00:24:25]} {[%emt 00:02:49]} 20.
a4 {[%clk 00:27:44]} {[%emt 00:11:48]} c6 {[%clk 00:22:29]} {[%emt 00:02:25]}
21. f4 {[%clk 00:22:41]} {[%emt 00:05:33]} Qg7 {[%clk 00:20:24]} {[%emt
00:02:34]} 22. Qf3 {[%clk 00:19:25]} {[%emt 00:03:47]} Kd7 {[%clk 00:16:40]}
{[%emt 00:04:14]} 23. Kd2 {[%emt 00:06:42]} Nf6 {[%clk 00:13:57]} 24. axb5
{[%emt 00:05:52]} cxb5 {[%clk 00:12:44]} {[%emt 00:00:01]} 25. Ra1 {[%clk
00:12:01]} {[%emt 00:01:15]} Rc6 {[%clk 00:10:16]} {[%emt 00:02:58]} 26. f5
{[%clk 00:07:42]} {[%emt 00:04:49]} Rhc8 {[%clk 00:07:44]} {[%emt 00:03:02]} 27.
Rac1 {[%clk 00:07:39]} {[%emt 00:00:32]} Rxc3 {[%clk 00:07:10]} {[%emt
00:01:05]} 28. Rxc3 {[%clk 00:07:06]} {[%emt 00:01:03]} Nde4+ {[%clk 00:07:32]}
{[%emt 00:00:07]} 29. Bxe4 {[%clk 00:05:41]} {[%emt 00:01:55]} Nxe4+ {[%clk
00:07:58]} {[%emt 00:00:04]} 30. Ke2 {[%clk 00:05:10]} {[%emt 00:01:02]} Rxc3
{[%clk 00:07:32]} {[%emt 00:00:55]} 31. fxe6+ {[%clk 00:05:01]} {[%emt
00:00:39]} Kxe6 {[%clk 00:07:08]} {[%emt 00:00:54]} 32. g4 {[%clk 00:04:56]}
{[%emt 00:00:36]} Qf6 {[%clk 00:01:36]} {[%emt 00:06:01]} 33. Qxf6+ {[%clk
00:04:52]} {[%emt 00:00:34]} Kxf6 {[%clk 00:02:05]} {[%emt 00:00:02]} 34. Rxh6+
{[%clk 00:04:49]} {[%emt 00:00:32]} Kg5 {[%clk 00:02:19]} {[%emt 00:00:16]} 35.
Rh5+ {[%clk 00:04:29]} {[%emt 00:00:50]} Kxg4 {[%clk 00:02:44]} {[%emt
00:00:06]} 36. Rxd5 {[%clk 00:03:52]} {[%emt 00:01:06]} Rb3 {[%clk 00:02:29]}
{[%emt 00:00:46]} 37. Re5 {[%clk 00:03:46]} {[%emt 00:00:36]} Ng3+ {[%clk
00:02:32]} {[%emt 00:00:26]} 38. Kd2 {[%clk 00:03:03]} {[%emt 00:01:13]} Rb2+
{[%clk 00:01:50]} {[%emt 00:01:13]} 39. Kd3 {[%clk 00:02:37]} {[%emt 00:00:56]}
Rxg2 {[%clk 00:02:04]} {[%emt 00:00:15]} 40. Re8 {[%clk 00:01:10]} {[%emt
00:01:57]} Ra2 {[%clk 00:00:52]} {[%emt 00:01:42]} 41. d5 {[%clk 00:29:58]}
{[%emt 00:01:42]} Nf5 {[%clk 00:25:20]} {[%emt 00:06:02]} 42. Rg8+ {[%clk
00:29:13]} {[%emt 00:01:15]} Kh5 {[%clk 00:25:31]} {[%emt 00:00:19]} 43. Ke4
{[%clk 00:28:58]} {[%emt 00:00:45]} Nd6+ {[%clk 00:25:27]} {[%emt 00:00:33]} 44.
Kd4 {[%clk 00:27:52]} {[%emt 00:01:36]} Nf5+ {[%clk 00:21:22]} {[%emt
00:04:36]} 45. Ke4 {[%clk 00:26:48]} {[%emt 00:01:35]} Nd6+ {[%clk 00:18:52]}
{[%emt 00:03:00]} 46. Kd4 {[%clk 00:26:46]} {[%emt 00:00:31]} Rc2 {[%clk
00:19:09]} {[%emt 00:00:13]} 47. Ke5 {[%clk 00:24:47]} {[%emt 00:02:29]} Nc4+
{[%clk 00:18:52]} {[%emt 00:00:47]} 1/2-1/2

[Event "2. Itzehoer Schach Open"]
[Site "Itzehoe, Germany"]
[Date "2023.04.29"]
[Round "2.2"]
[White "Martin, Dennis"]
[Black "Kuegel, Tobias"]
[Result "0-1"]
[TimeControl "90 min / 40 Züge + 30 min + 30 Sek pro Zug"]
[WhiteElo "2012"]
[BlackElo "2332"]

1. d4 {[%clk 01:30:58]} d6 {[%clk 01:17:22]} {[%emt 00:13:24]} 2. c4 {[%clk
01:30:51]} {[%emt 00:00:52]} e5 {[%clk 01:17:43]} {[%emt 00:00:09]} 3. dxe5
{[%clk 01:30:10]} {[%emt 00:01:11]} dxe5 {[%clk 01:15:52]} {[%emt 00:02:21]} 4.
Qxd8+ {[%clk 01:30:38]} {[%emt 00:00:03]} Kxd8 {[%clk 01:16:02]} {[%emt
00:00:20]} 5. Nc3 {[%clk 01:31:00]} {[%emt 00:00:08]} Be6 {[%clk 01:16:20]}
{[%emt 00:00:12]} 6. b3 {[%clk 01:30:44]} {[%emt 00:00:45]} Nd7 {[%clk
01:14:32]} {[%emt 00:02:18]} 7. Bb2 {[%clk 01:30:39]} {[%emt 00:00:35]} c6
{[%clk 01:14:37]} {[%emt 00:00:26]} 8. g3 {[%clk 01:30:25]} {[%emt 00:00:43]}
f6 {[%clk 01:14:26]} {[%emt 00:00:42]} 9. Bg2 {[%clk 01:30:52]} {[%emt
00:00:03]} Nh6 {[%clk 01:12:17]} {[%emt 00:02:39]} 10. Nf3 {[%clk 01:30:30]}
{[%emt 00:00:52]} Kc7 {[%clk 01:08:02]} {[%emt 00:04:44]} 11. O-O-O {[%clk
01:25:47]} {[%emt 00:05:13]} a5 {[%clk 01:03:44]} {[%emt 00:04:49]} 12. h3
{[%clk 01:23:07]} {[%emt 00:03:09]} Bb4 {[%clk 00:59:14]} {[%emt 00:04:59]} 13.
g4 {[%clk 01:19:55]} {[%emt 00:03:43]} Nc5 {[%clk 00:56:30]} {[%emt 00:03:14]}
14. Nd2 {[%clk 01:13:38]} {[%emt 00:06:47]} a4 {[%clk 00:48:27]} {[%emt
00:08:34]} 15. Kc2 {[%clk 01:00:01]} {[%emt 00:14:06]} Nf7 {[%clk 00:44:36]}
{[%emt 00:04:20]} 16. Ncb1 {[%clk 00:45:14]} {[%emt 00:15:18]} h5 {[%clk
00:42:23]} {[%emt 00:02:43]} 17. f3 {[%clk 00:42:20]} {[%emt 00:03:24]} Nd6
{[%clk 00:37:01]} {[%emt 00:05:52]} 18. Bc3 {[%clk 00:40:13]} {[%emt 00:02:38]}
axb3+ {[%clk 00:34:55]} {[%emt 00:02:33]} 19. axb3 {[%clk 00:40:11]} {[%emt
00:00:35]} Ra2+ {[%clk 00:31:13]} {[%emt 00:04:12]} 20. Kc1 {[%clk 00:35:22]}
{[%emt 00:05:18]} Na6 {[%clk 00:25:28]} {[%emt 00:06:15]} 21. e3 {[%clk
00:27:34]} {[%emt 00:08:17]} Nc5 {[%clk 00:23:31]} {[%emt 00:02:27]} 22. Bf1
{[%clk 00:26:23]} {[%emt 00:01:42]} Bxc3 {[%clk 00:23:01]} {[%emt 00:01:00]} 23.
Nxc3 {[%clk 00:26:49]} {[%emt 00:00:04]} Ra1+ {[%clk 00:23:23]} {[%emt
00:00:08]} 24. Ncb1 {[%clk 00:22:46]} {[%emt 00:04:34]} hxg4 {[%clk 00:22:20]}
{[%emt 00:01:33]} 25. Rg1 {[%clk 00:20:33]} {[%emt 00:02:42]} gxh3 {[%clk
00:18:21]} {[%emt 00:04:28]} 26. Rxg7+ {[%clk 00:20:48]} {[%emt 00:00:16]} Kb8
{[%clk 00:16:12]} {[%emt 00:02:39]} 27. Kb2 {[%clk 00:20:06]} {[%emt 00:01:12]}
Ra8 {[%clk 00:12:00]} {[%emt 00:04:43]} 28. Kc3 {[%clk 00:16:38]} {[%emt
00:03:57]} h2 {[%clk 00:11:03]} {[%emt 00:01:27]} 29. Bg2 {[%clk 00:16:58]}
{[%emt 00:00:09]} Nf5 {[%clk 00:11:18]} {[%emt 00:00:14]} 30. Rg6 {[%clk
00:16:08]} {[%emt 00:01:21]} Nh4 {[%clk 00:11:16]} {[%emt 00:00:33]} 0-1

[Event "2. Itzehoer Schach Open"]
[Site "Itzehoe, Germany"]
[Date "2023.04.29"]
[Round "2.22"]
[White "Papenfuss, Kai"]
[Black "Marzik, Arne"]
[Result "1/2-1/2"]
[TimeControl "90 min / 40 Züge + 30 min + 30 Sek pro Zug"]
[WhiteElo "1751"]
[BlackElo "1545"]

1. e4 {[%clk 01:30:56]} {[%emt 00:00:03]} e6 {[%clk 01:30:52]} {[%emt
00:00:08]} 2. d3 {[%clk 01:31:20]} {[%emt 00:00:07]} d5 {[%clk 01:30:48]}
{[%emt 00:00:34]} 3. Nd2 {[%clk 01:31:40]} {[%emt 00:00:09]} Nf6 {[%clk
01:30:47]} {[%emt 00:00:31]} 4. Ngf3 {[%clk 01:31:28]} {[%emt 00:00:42]} c5
{[%clk 01:31:06]} {[%emt 00:00:11]} 5. g3 {[%clk 01:31:20]} {[%emt 00:00:38]}
Nc6 {[%clk 01:31:05]} {[%emt 00:00:32]} 6. Bg2 {[%clk 01:31:17]} {[%emt
00:00:33]} Bd6 {[%clk 01:30:33]} {[%emt 00:01:01]} 7. O-O {[%clk 01:30:23]}
{[%emt 00:01:25]} O-O {[%clk 01:28:12]} {[%emt 00:02:51]} 8. Re1 {[%clk
01:30:09]} {[%emt 00:00:43]} Qc7 {[%clk 01:27:58]} {[%emt 00:00:45]} 9. Qe2
{[%clk 01:26:22]} {[%emt 00:04:17]} Nd7 {[%clk 01:11:59]} {[%emt 00:16:29]} 10.
c3 {[%clk 01:21:21]} {[%emt 00:05:30]} d4 {[%clk 01:07:23]} {[%emt 00:05:06]}
11. cxd4 {[%clk 01:15:39]} {[%emt 00:06:12]} cxd4 {[%clk 01:07:18]} {[%emt
00:00:35]} 12. Nc4 {[%clk 01:14:46]} {[%emt 00:01:24]} e5 {[%clk 01:06:53]}
{[%emt 00:00:54]} 13. Nxd6 {[%clk 01:12:57]} {[%emt 00:02:20]} Qxd6 {[%clk
01:05:11]} {[%emt 00:02:12]} 14. Nh4 {[%clk 01:13:02]} {[%emt 00:00:25]} Nc5
{[%clk 00:56:18]} {[%emt 00:09:22]} 15. f4 {[%clk 01:02:45]} {[%emt 00:10:47]}
f6 {[%clk 00:51:24]} {[%emt 00:05:24]} 16. Bd2 {[%clk 00:59:02]} {[%emt
00:04:13]} a5 {[%clk 00:48:54]} {[%emt 00:03:00]} 17. Nf5 {[%clk 00:54:58]}
{[%emt 00:04:34]} Bxf5 {[%clk 00:32:48]} {[%emt 00:16:36]} 18. exf5 {[%clk
00:55:17]} {[%emt 00:00:11]} Qd7 {[%clk 00:32:27]} {[%emt 00:00:52]} 19. Rac1
{[%clk 00:52:07]} {[%emt 00:03:40]} Na6 {[%clk 00:29:19]} {[%emt 00:03:37]} 20.
Bxc6 {[%clk 00:45:21]} {[%emt 00:07:16]} bxc6 {[%clk 00:29:21]} {[%emt
00:00:28]} 21. Qe4 {[%clk 00:45:05]} {[%emt 00:00:46]} exf4 {[%clk 00:20:41]}
{[%emt 00:09:09]} 22. Qxf4 {[%clk 00:32:01]} {[%emt 00:13:35]} Nb4 {[%clk
00:18:13]} {[%emt 00:02:58]} 23. Qf3 {[%clk 00:30:50]} {[%emt 00:01:40]} Nxa2
{[%clk 00:12:37]} {[%emt 00:06:08]} 24. Qxc6 {[%clk 00:28:23]} {[%emt
00:02:57]} Qxc6 {[%clk 00:11:47]} {[%emt 00:01:20]} 25. Rxc6 {[%clk 00:28:50]}
{[%emt 00:00:02]} Nb4 {[%clk 00:12:08]} {[%emt 00:00:09]} 26. Bxb4 {[%clk
00:24:53]} {[%emt 00:04:28]} axb4 {[%clk 00:12:29]} {[%emt 00:00:08]} 27. Rc4
{[%clk 00:25:08]} {[%emt 00:00:15]} b3 {[%clk 00:10:04]} {[%emt 00:02:55]} 28.
Rxd4 {[%clk 00:24:29]} {[%emt 00:01:09]} Rfd8 {[%clk 00:09:56]} {[%emt
00:00:37]} 29. Rxd8+ {[%clk 00:22:32]} {[%emt 00:02:28]} Rxd8 {[%clk 00:10:18]}
{[%emt 00:00:09]} 30. Re3 {[%clk 00:22:31]} {[%emt 00:00:30]} h5 {[%clk
00:07:21]} {[%emt 00:03:27]} 31. Kf2 {[%clk 00:21:56]} {[%emt 00:01:04]} Rd5
{[%clk 00:07:19]} {[%emt 00:00:33]} 32. Rf3 {[%clk 00:21:52]} {[%emt 00:00:35]}
Re5 {[%clk 00:07:29]} {[%emt 00:00:19]} 33. d4 {[%clk 00:21:04]} {[%emt
00:01:18]} Re4 {[%clk 00:06:00]} {[%emt 00:02:00]} 34. Rf4 {[%clk 00:19:54]}
{[%emt 00:01:39]} Re7 {[%clk 00:05:42]} {[%emt 00:00:48]} 35. d5 {[%clk
00:19:38]} {[%emt 00:00:47]} Re5 {[%clk 00:05:40]} {[%emt 00:00:32]} 36. Rd4
{[%clk 00:12:37]} {[%emt 00:07:31]} Rxf5+ {[%clk 00:05:46]} {[%emt 00:00:23]}
37. Ke3 {[%clk 00:12:57]} {[%emt 00:00:10]} Re5+ {[%clk 00:06:03]} {[%emt
00:00:14]} 38. Kd2 {[%clk 00:11:29]} {[%emt 00:01:57]} Kf7 {[%clk 00:06:25]}
{[%emt 00:00:09]} 39. Kc3 {[%clk 00:11:13]} {[%emt 00:00:45]} Re3+ {[%clk
00:05:27]} {[%emt 00:01:28]} 40. Rd3 {[%clk 00:10:22]} {[%emt 00:01:22]} Rxd3+
{[%clk 00:04:37]} {[%emt 00:01:19]} 41. Kxd3 {[%clk 00:10:49]} {[%emt
00:00:03]} g5 {[%clk 00:04:38]} {[%emt 00:00:28]} 42. Kd4 {[%clk 00:30:18]}
{[%emt 00:11:02]} Ke7 {[%clk 00:33:54]} {[%emt 00:01:15]} 43. Kc5 {[%clk
00:30:21]} {[%emt 00:00:26]} f5 {[%clk 00:33:47]} {[%emt 00:00:37]} 44. d6+
{[%clk 00:29:51]} {[%emt 00:01:00]} Kd7 {[%clk 00:30:47]} {[%emt 00:03:30]} 45.
Kd5 {[%clk 00:27:26]} {[%emt 00:02:54]} f4 {[%clk 00:29:23]} {[%emt 00:01:54]}
46. gxf4 {[%clk 00:27:11]} {[%emt 00:00:46]} gxf4 {[%clk 00:29:43]} {[%emt
00:00:10]} 47. Ke4 {[%clk 00:27:11]} {[%emt 00:00:30]} Kxd6 {[%clk 00:25:48]}
{[%emt 00:04:25]} 48. Kxf4 {[%clk 00:27:12]} {[%emt 00:00:28]} Kd5 {[%clk
00:25:52]} {[%emt 00:00:27]} 49. Ke3 {[%clk 00:26:49]} {[%emt 00:00:54]} Kc4
{[%clk 00:25:18]} {[%emt 00:01:03]} 50. Ke4 {[%clk 00:23:43]} {[%emt 00:03:35]}
h4 {[%clk 00:22:22]} {[%emt 00:03:27]} 51. h3 {[%clk 00:23:46]} {[%emt
00:00:26]} Kc5 {[%clk 00:22:02]} {[%emt 00:00:51]} 52. Kd3 {[%clk 00:23:28]}
{[%emt 00:00:48]} Kd5 {[%clk 00:21:54]} {[%emt 00:00:38]} 53. Kc3 {[%clk
00:13:32]} {[%emt 00:10:26]} Ke4 {[%clk 00:21:55]} {[%emt 00:00:29]} 54. Kxb3
{[%clk 00:13:53]} {[%emt 00:00:09]} Kf3 {[%clk 00:22:18]} {[%emt 00:00:07]} 55.
Kc4 {[%clk 00:14:10]} {[%emt 00:00:13]} Kg3 {[%clk 00:22:13]} {[%emt 00:00:35]}
56. b4 {[%clk 00:14:30]} {[%emt 00:00:10]} Kxh3 {[%clk 00:22:40]} {[%emt
00:00:04]} 57. b5 {[%clk 00:14:42]} {[%emt 00:00:18]} Kg2 {[%clk 00:22:51]}
{[%emt 00:00:18]} 58. b6 {[%clk 00:14:51]} {[%emt 00:00:22]} h3 {[%clk
00:23:19]} {[%emt 00:00:02]} 59. b7 {[%clk 00:15:03]} {[%emt 00:00:17]} h2
{[%clk 00:23:42]} {[%emt 00:00:06]} 60. b8=Q {[%clk 00:15:06]} {[%emt
00:00:28]} h1=Q {[%clk 00:24:02]} {[%emt 00:00:10]} 61. Qb7+ {[%clk 00:13:55]}
{[%emt 00:01:41]} Kg1 {[%clk 00:24:11]} {[%emt 00:00:19]} 62. Qb1+ {[%clk
00:13:29]} {[%emt 00:00:57]} Kh2 {[%clk 00:24:17]} {[%emt 00:00:24]} 63. Qb2+
{[%clk 00:12:52]} {[%emt 00:01:08]} Qg2 {[%clk 00:24:39]} {[%emt 00:00:08]} 64.
Qe5+ {[%clk 00:13:08]} {[%emt 00:00:14]} Qg3 {[%emt 00:01:30]} 1/2-1/2